[Event "Titled Tuesday Blitz February 14 Late 2023"]
[White "Golubev, Mikhail"]
[Black "Slavin, Alexey"]
[WhiteFideId "14100983"]
[BlackFideId "24104388"]
[WhiteElo "2461"]
[BlackElo "2364"]
[Result "0-1"]
[Round "10"]
[TimeControl "180+2"]
[Date "2023.02.14"]
[WhiteClock "0:00:02"]
[BlackClock "0:00:45"]

1. e4 {[%clk 0:02:59]}  Nc6 {[%clk 0:03:00]} 2. Nf3 {[%clk 0:02:57]}  d6 {[%clk 0:03:00]} 3. d4 {[%clk 0:02:56]}  Nf6 {[%clk 0:03:01]} 4. Nc3 {[%clk 0:02:56]}  Bg4 {[%clk 0:03:01]} 5. Be3 {[%clk 0:02:55]}  a6 {[%clk 0:03:00]} 6. h3 {[%clk 0:02:51]}  Bh5 {[%clk 0:02:59]} 7. Qe2 {[%clk 0:02:44]}  e5 {[%clk 0:02:58]} 8. g4 {[%clk 0:02:37]}  Bg6 {[%clk 0:02:58]} 9. O-O-O {[%clk 0:02:21]}  Qc8 {[%clk 0:02:57]} 10. d5 {[%clk 0:02:15]}  Nb8 {[%clk 0:02:56]} 11. Bg5 {[%clk 0:01:56]}  Be7 {[%clk 0:02:53]} 12. h4 {[%clk 0:01:45]}  h5 {[%clk 0:02:40]} 13. Bxf6 {[%clk 0:01:42]}  Bxf6 {[%clk 0:02:40]} 14. g5 {[%clk 0:01:40]}  Be7 {[%clk 0:02:39]} 15. Bh3 {[%clk 0:01:40]}  Nd7 {[%clk 0:02:29]} 16. Ne1 {[%clk 0:01:33]}  O-O {[%clk 0:02:27]} 17. Nd3 {[%clk 0:01:31]}  Qe8 {[%clk 0:02:18]} 18. f4 {[%clk 0:01:13]}  exf4 {[%clk 0:02:17]} 19. Nxf4 {[%clk 0:01:13]}  Ne5 {[%clk 0:02:17]} 20. Nxh5 {[%clk 0:01:06]}  Bxh5 {[%clk 0:02:04]} 21. Qxh5 {[%clk 0:01:05]}  b5 {[%clk 0:01:29]} 22. Rdg1 {[%clk 0:00:40]}  g6 {[%clk 0:01:27]} 23. Qh6 {[%clk 0:00:26]}  Nf3 {[%clk 0:01:11]} 24. h5 {[%clk 0:00:20]}  Qd8 {[%clk 0:01:02]} 25. hxg6 {[%clk 0:00:04]}  Bxg5+ {[%clk 0:01:01]} 26. Rxg5 {[%clk 0:00:04]}  Qxg5+ {[%clk 0:01:01]} 27. Qxg5 {[%clk 0:00:03]}  Nxg5 {[%clk 0:01:01]} 28. gxf7+ {[%clk 0:00:02]}  Kxf7 {[%clk 0:00:56]} 29. Bf5 {[%clk 0:00:03]}  Rh8 {[%clk 0:00:53]} 30. Rg1 {[%clk 0:00:03]}  Kf6 {[%clk 0:00:51]} 31. Nd1 {[%clk 0:00:03]}  Rae8 {[%clk 0:00:48]} 32. Ne3 {[%clk 0:00:03]}  Nxe4 {[%clk 0:00:46]} 33. Rg6+ {[%clk 0:00:03]}  Kf7 {[%clk 0:00:45]} 34. Ng4 {[%clk 0:00:02]} 0-1


[Site "https://www.chess.com"]

[Event "Titled Tuesday Blitz February 14 Late 2023"]
[White "Poeta, Caio Medeiros"]
[Black "Georg, Heinz"]
[WhiteFideId "2142660"]
[BlackFideId "4607295"]
[WhiteElo "2088"]
[BlackElo "2107"]
[Result "1-0"]
[Round "10"]
[TimeControl "180+2"]
[Date "2023.02.14"]
[WhiteClock "0:00:56"]
[BlackClock "0:00:01"]

1. d4 {[%clk 0:02:58]}  f5 {[%clk 0:02:59]} 2. e4 {[%clk 0:02:56]}  fxe4 {[%clk 0:02:59]} 3. Nc3 {[%clk 0:02:56]}  Nf6 {[%clk 0:02:59]} 4. Bg5 {[%clk 0:02:55]}  Nc6 {[%clk 0:02:59]} 5. d5 {[%clk 0:02:55]}  Ne5 {[%clk 0:03:00]} 6. Qd4 {[%clk 0:02:55]}  Nf7 {[%clk 0:03:00]} 7. Bxf6 {[%clk 0:02:56]}  exf6 {[%clk 0:02:59]} 8. Nxe4 {[%clk 0:02:57]}  f5 {[%clk 0:02:57]} 9. Ng3 {[%clk 0:02:55]}  d6 {[%clk 0:02:56]} 10. O-O-O {[%clk 0:02:54]}  g6 {[%clk 0:02:35]} 11. h4 {[%clk 0:02:54]}  Bh6+ {[%clk 0:02:33]} 12. Kb1 {[%clk 0:02:53]}  O-O {[%clk 0:02:33]} 13. h5 {[%clk 0:02:53]}  Bg7 {[%clk 0:02:33]} 14. Qd2 {[%clk 0:02:47]}  Qf6 {[%clk 0:02:33]} 15. c3 {[%clk 0:02:39]}  g5 {[%clk 0:02:33]} 16. Nf3 {[%clk 0:02:36]}  h6 {[%clk 0:02:31]} 17. Bd3 {[%clk 0:02:31]}  Bd7 {[%clk 0:02:17]} 18. Nd4 {[%clk 0:02:27]}  f4 {[%clk 0:01:51]} 19. Ngf5 {[%clk 0:02:21]}  Ne5 {[%clk 0:01:39]} 20. Nxg7 {[%clk 0:02:15]}  Kxg7 {[%clk 0:01:25]} 21. Ka1 {[%clk 0:02:04]}  Nxd3 {[%clk 0:01:17]} 22. Qxd3 {[%clk 0:02:04]}  Rae8 {[%clk 0:01:17]} 23. Rhe1 {[%clk 0:02:01]}  Re5 {[%clk 0:01:17]} 24. Nf3 {[%clk 0:01:55]}  Bf5 {[%clk 0:01:13]} 25. Qb5 {[%clk 0:01:50]}  Rxe1 {[%clk 0:00:53]} 26. Rxe1 {[%clk 0:01:51]}  b6 {[%clk 0:00:54]} 27. Qc6 {[%clk 0:01:44]}  Rf7 {[%clk 0:00:51]} 28. Nd4 {[%clk 0:01:42]}  Bd7 {[%clk 0:00:42]} 29. Qxc7 {[%clk 0:01:36]}  Bf5 {[%clk 0:00:09]} 30. Re7 {[%clk 0:01:12]}  Be4 {[%clk 0:00:02]} 31. Ne6+ {[%clk 0:01:11]}  Kg8 {[%clk 0:00:01]} 32. Qd8+ {[%clk 0:00:56]} 1-0


[Site "https://www.chess.com"]

[Event "Titled Tuesday Blitz February 14 Late 2023"]
[White "Balog, Imre"]
[Black "Gonzalez, Francisco Silva"]
[WhiteFideId "728446"]
[BlackFideId "1512285"]
[WhiteElo "2615"]
[BlackElo "2021"]
[Result "0-1"]
[Round "10"]
[TimeControl "180+2"]
[Date "2023.02.14"]
[WhiteClock "0:00:04"]
[BlackClock "0:01:27"]

1. e4 {[%clk 0:03:00]}  e5 {[%clk 0:02:59]} 2. f4 {[%clk 0:02:59]}  exf4 {[%clk 0:02:58]} 3. Nf3 {[%clk 0:02:59]}  g5 {[%clk 0:02:58]} 4. h4 {[%clk 0:02:57]}  g4 {[%clk 0:02:58]} 5. Ng1 {[%clk 0:02:58]}  d5 {[%clk 0:02:56]} 6. exd5 {[%clk 0:02:41]}  Bd6 {[%clk 0:02:54]} 7. d4 {[%clk 0:02:04]}  Nf6 {[%clk 0:02:50]} 8. c4 {[%clk 0:01:58]}  c5 {[%clk 0:02:49]} 9. dxc5 {[%clk 0:01:49]}  Qa5+ {[%clk 0:02:48]} 10. Bd2 {[%clk 0:01:33]}  Qxc5 {[%clk 0:02:47]} 11. b4 {[%clk 0:01:05]}  Qd4 {[%clk 0:02:47]} 12. Qe2+ {[%clk 0:00:50]}  Qe4 {[%clk 0:02:37]} 13. Qxe4+ {[%clk 0:00:48]}  Nxe4 {[%clk 0:02:36]} 14. Nc3 {[%clk 0:00:48]}  Nxd2 {[%clk 0:02:35]} 15. Kxd2 {[%clk 0:00:47]}  Bxb4 {[%clk 0:02:35]} 16. Re1+ {[%clk 0:00:42]}  Kf8 {[%clk 0:02:34]} 17. Ne2 {[%clk 0:00:42]}  f3 {[%clk 0:02:35]} 18. gxf3 {[%clk 0:00:42]}  gxf3 {[%clk 0:02:35]} 19. Nd4 {[%clk 0:00:41]}  Bg4 {[%clk 0:02:33]} 20. Bh3 {[%clk 0:00:39]}  h5 {[%clk 0:02:32]} 21. Re3 {[%clk 0:00:27]}  Bc5 {[%clk 0:02:30]} 22. Rd3 {[%clk 0:00:27]}  Bxd4 {[%clk 0:02:24]} 23. Rxd4 {[%clk 0:00:26]}  f5 {[%clk 0:02:25]} 24. Bf1 {[%clk 0:00:22]}  Nd7 {[%clk 0:02:24]} 25. Nb5 {[%clk 0:00:20]}  Nc5 {[%clk 0:02:18]} 26. Bd3 {[%clk 0:00:19]}  Re8 {[%clk 0:02:13]} 27. Nd6 {[%clk 0:00:16]}  Nxd3 {[%clk 0:02:10]} 28. Nxe8 {[%clk 0:00:12]}  Nf2 {[%clk 0:02:10]} 29. Rf1 {[%clk 0:00:11]}  Ne4+ {[%clk 0:02:07]} 30. Rxe4 {[%clk 0:00:09]}  fxe4 {[%clk 0:02:07]} 31. Nf6 {[%clk 0:00:09]}  Kg7 {[%clk 0:02:04]} 32. Nxe4 {[%clk 0:00:09]}  Re8 {[%clk 0:02:04]} 33. Ng3 {[%clk 0:00:08]}  b6 {[%clk 0:02:02]} 34. Rf2 {[%clk 0:00:08]}  Kf6 {[%clk 0:02:01]} 35. Kd3 {[%clk 0:00:09]}  Ke5 {[%clk 0:01:59]} 36. Rf1 {[%clk 0:00:08]}  Kf4 {[%clk 0:01:59]} 37. Rf2 {[%clk 0:00:08]}  Kxg3 {[%clk 0:01:59]} 38. Rf1 {[%clk 0:00:09]}  Bf5+ {[%clk 0:01:59]} 39. Kd4 {[%clk 0:00:09]}  Re4+ {[%clk 0:01:58]} 40. Kc3 {[%clk 0:00:09]}  Re2 {[%clk 0:01:58]} 41. d6 {[%clk 0:00:09]}  Re3+ {[%clk 0:01:56]} 42. Kb4 {[%clk 0:00:08]}  Rd3 {[%clk 0:01:56]} 43. c5 {[%clk 0:00:09]}  bxc5+ {[%clk 0:01:55]} 44. Kxc5 {[%clk 0:00:10]}  f2 {[%clk 0:01:56]} 45. Rb1 {[%clk 0:00:08]}  Rxd6 {[%clk 0:01:53]} 46. Rb3+ {[%clk 0:00:06]}  Kg2 {[%clk 0:01:53]} 47. Kxd6 {[%clk 0:00:04]}  f1=R {[%clk 0:01:52]} 48. Rb2+ {[%clk 0:00:04]}  Rf2 {[%clk 0:01:51]} 49. Rb7 {[%clk 0:00:03]}  Rxa2 {[%clk 0:01:50]} 50. Ke5 {[%clk 0:00:03]}  Bg4 {[%clk 0:01:50]} 51. Kf4 {[%clk 0:00:03]}  Ra4+ {[%clk 0:01:50]} 52. Ke3 {[%clk 0:00:04]}  Ra3+ {[%clk 0:01:50]} 53. Kf4 {[%clk 0:00:04]}  Rf3+ {[%clk 0:01:50]} 54. Kg5 {[%clk 0:00:04]}  a5 {[%clk 0:01:50]} 55. Rb2+ {[%clk 0:00:04]}  Kg3 {[%clk 0:01:50]} 56. Ra2 {[%clk 0:00:04]}  Rf5+ {[%clk 0:01:50]} 57. Kh6 {[%clk 0:00:04]}  Kxh4 {[%clk 0:01:50]} 58. Rh2+ {[%clk 0:00:04]}  Bh3 {[%clk 0:01:50]} 59. Ra2 {[%clk 0:00:05]}  Rf6+ {[%clk 0:01:48]} 60. Kg7 {[%clk 0:00:05]}  Ra6 {[%clk 0:01:48]} 61. Ra4+ {[%clk 0:00:03]}  Bg4 {[%clk 0:01:48]} 62. Kf7 {[%clk 0:00:03]}  Kg5 {[%clk 0:01:47]} 63. Ra2 {[%clk 0:00:03]}  h4 {[%clk 0:01:47]} 64. Kg7 {[%clk 0:00:03]}  h3 {[%clk 0:01:47]} 65. Rg2 {[%clk 0:00:03]}  Rg6+ {[%clk 0:01:46]} 66. Kh8 {[%clk 0:00:03]}  Rg8+ {[%clk 0:01:45]} 67. Kh7 {[%clk 0:00:03]}  Rh8+ {[%clk 0:01:45]} 68. Kg7 {[%clk 0:00:03]}  Rh7+ {[%clk 0:01:45]} 69. Kg8 {[%clk 0:00:03]}  hxg2 {[%clk 0:01:46]} 70. Kf8 {[%clk 0:00:02]}  Rf7+ {[%clk 0:01:45]} 71. Kg8 {[%clk 0:00:02]}  Be6 {[%clk 0:01:44]} 72. Kh8 {[%clk 0:00:02]}  Rh7+ {[%clk 0:01:44]} 73. Kxh7 {[%clk 0:00:02]}  Bg8+ {[%clk 0:01:44]} 74. Kh8 {[%clk 0:00:01]}  a4 {[%clk 0:01:44]} 75. Kg7 {[%clk 0:00:02]}  Bf7 {[%clk 0:01:43]} 76. Kh8 {[%clk 0:00:03]}  a3 {[%clk 0:01:42]} 77. Kg7 {[%clk 0:00:04]}  a2 {[%clk 0:01:42]} 78. Kh8 {[%clk 0:00:05]}  a1=B+ {[%clk 0:01:41]} 79. Kh7 {[%clk 0:00:06]}  Bg8+ {[%clk 0:01:39]} 80. Kxg8 {[%clk 0:00:05]}  Bg7 {[%clk 0:01:38]} 81. Kf7 {[%clk 0:00:05]}  g1=R {[%clk 0:01:36]} 82. Kg8 {[%clk 0:00:05]}  Rf1 {[%clk 0:01:35]} 83. Kh7 {[%clk 0:00:05]}  Bh6 {[%clk 0:01:33]} 84. Kg8 {[%clk 0:00:04]}  Kg6 {[%clk 0:01:28]} 85. Kh8 {[%clk 0:00:03]}  Rf2 {[%clk 0:01:28]} 86. Kg8 {[%clk 0:00:03]}  Rf3 {[%clk 0:01:28]} 87. Kh8 {[%clk 0:00:04]}  Rf4 {[%clk 0:01:27]} 88. Kg8 {[%clk 0:00:04]}  Rf5 {[%clk 0:01:27]} 89. Kh8 {[%clk 0:00:04]}  Rf8# {[%clk 0:01:27]} 0-1


[Site "https://www.chess.com"]

[Event "Titled Tuesday Blitz February 14 Late 2023"]
[White "Levine, David"]
[Black "Davidson, Kevin"]
[WhiteFideId "2011611"]
[BlackFideId "2056810"]
[WhiteElo "2040"]
[BlackElo "2154"]
[Result "0-1"]
[Round "10"]
[TimeControl "180+2"]
[Date "2023.02.14"]
[WhiteClock "0:00:13"]
[BlackClock "0:00:23"]

1. d4 {[%clk 0:02:59]}  Nf6 {[%clk 0:02:59]} 2. c4 {[%clk 0:02:58]}  g6 {[%clk 0:03:00]} 3. g3 {[%clk 0:02:58]}  Bg7 {[%clk 0:03:00]} 4. Bg2 {[%clk 0:02:59]}  O-O {[%clk 0:03:01]} 5. Nf3 {[%clk 0:02:59]}  d6 {[%clk 0:03:01]} 6. O-O {[%clk 0:02:58]}  Nbd7 {[%clk 0:03:01]} 7. Nc3 {[%clk 0:02:58]}  e5 {[%clk 0:03:02]} 8. e4 {[%clk 0:02:58]}  c6 {[%clk 0:03:02]} 9. h3 {[%clk 0:02:58]}  Qb6 {[%clk 0:03:02]} 10. Re1 {[%clk 0:02:52]}  exd4 {[%clk 0:03:01]} 11. Nxd4 {[%clk 0:02:51]}  Re8 {[%clk 0:03:02]} 12. Nc2 {[%clk 0:02:45]}  Nc5 {[%clk 0:02:52]} 13. Qxd6 {[%clk 0:02:30]}  Rd8 {[%clk 0:02:47]} 14. Qf4 {[%clk 0:02:13]}  Nd3 {[%clk 0:02:47]} 15. Qe3 {[%clk 0:02:08]}  Nxe1 {[%clk 0:02:43]} 16. Qxe1 {[%clk 0:02:08]}  Be6 {[%clk 0:02:39]} 17. b3 {[%clk 0:02:06]}  Nd7 {[%clk 0:02:20]} 18. Be3 {[%clk 0:02:02]}  Qa5 {[%clk 0:02:20]} 19. Nd4 {[%clk 0:01:45]}  Nc5 {[%clk 0:02:07]} 20. Rd1 {[%clk 0:01:36]}  Rd7 {[%clk 0:01:50]} 21. Nxe6 {[%clk 0:01:25]}  Rxd1 {[%clk 0:01:45]} 22. Qxd1 {[%clk 0:01:22]}  Nxe6 {[%clk 0:01:39]} 23. Ne2 {[%clk 0:01:09]}  Qxa2 {[%clk 0:01:24]} 24. Bf3 {[%clk 0:01:00]}  Rd8 {[%clk 0:01:18]} 25. Qc1 {[%clk 0:00:49]}  Nd4 {[%clk 0:00:58]} 26. Nxd4 {[%clk 0:00:45]}  Bxd4 {[%clk 0:00:59]} 27. Bxd4 {[%clk 0:00:43]}  Rxd4 {[%clk 0:00:58]} 28. Qc3 {[%clk 0:00:42]}  Qd2 {[%clk 0:00:48]} 29. Qa1 {[%clk 0:00:34]}  Rd3 {[%clk 0:00:43]} 30. Qf6 {[%clk 0:00:24]}  Qc3 {[%clk 0:00:25]} 31. e5 {[%clk 0:00:20]}  Rxf3 {[%clk 0:00:23]} 32. Qd8+ {[%clk 0:00:13]}  Kg7 {[%clk 0:00:23]} 0-1


[Site "https://www.chess.com"]

[Event "Titled Tuesday Blitz February 14 Late 2023"]
[White "Marin Masis, Jose Esteban"]
[Black "Estrada Nieto, Julian"]
[WhiteFideId "6508146"]
[BlackFideId "5101018"]
[WhiteElo "1938"]
[BlackElo "2215"]
[Result "0-1"]
[Round "10"]
[TimeControl "180+2"]
[Date "2023.02.14"]
[WhiteClock "0:00:07"]
[BlackClock "0:00:17"]

1. e4 {[%clk 0:03:00]}  e5 {[%clk 0:03:00]} 2. Nf3 {[%clk 0:03:00]}  Nc6 {[%clk 0:03:00]} 3. Bb5 {[%clk 0:03:00]}  a6 {[%clk 0:03:00]} 4. Ba4 {[%clk 0:03:01]}  Nf6 {[%clk 0:03:01]} 5. d3 {[%clk 0:02:59]}  d6 {[%clk 0:02:58]} 6. h3 {[%clk 0:02:58]}  g6 {[%clk 0:02:58]} 7. O-O {[%clk 0:02:58]}  Bg7 {[%clk 0:02:58]} 8. Bg5 {[%clk 0:02:59]}  h6 {[%clk 0:02:57]} 9. Be3 {[%clk 0:02:58]}  O-O {[%clk 0:02:57]} 10. Nbd2 {[%clk 0:02:58]}  b5 {[%clk 0:02:47]} 11. Bb3 {[%clk 0:02:57]}  Na5 {[%clk 0:02:47]} 12. a4 {[%clk 0:02:44]}  Nxb3 {[%clk 0:02:46]} 13. cxb3 {[%clk 0:02:43]}  Bb7 {[%clk 0:02:45]} 14. Qc2 {[%clk 0:02:35]}  c5 {[%clk 0:02:41]} 15. b4 {[%clk 0:02:23]}  cxb4 {[%clk 0:02:38]} 16. a5 {[%clk 0:02:22]}  Nd7 {[%clk 0:02:27]} 17. Nb3 {[%clk 0:02:04]}  Rc8 {[%clk 0:02:24]} 18. Qd2 {[%clk 0:02:02]}  Nc5 {[%clk 0:02:21]} 19. Nxc5 {[%clk 0:01:59]}  dxc5 {[%clk 0:02:21]} 20. Bxh6 {[%clk 0:01:59]}  c4 {[%clk 0:02:12]} 21. Bxg7 {[%clk 0:01:49]}  Kxg7 {[%clk 0:02:12]} 22. Nxe5 {[%clk 0:01:33]}  Qd4 {[%clk 0:01:56]} 23. Ng4 {[%clk 0:01:14]}  Rh8 {[%clk 0:01:55]} 24. Qxb4 {[%clk 0:00:50]}  Rcd8 {[%clk 0:01:29]} 25. dxc4 {[%clk 0:00:42]}  Qxe4 {[%clk 0:01:24]} 26. Qc3+ {[%clk 0:00:36]}  Qd4 {[%clk 0:01:23]} 27. cxb5 {[%clk 0:00:26]}  axb5 {[%clk 0:01:18]} 28. a6 {[%clk 0:00:24]}  Qxc3 {[%clk 0:01:16]} 29. bxc3 {[%clk 0:00:23]}  Ba8 {[%clk 0:01:16]} 30. Rfb1 {[%clk 0:00:20]}  Rd5 {[%clk 0:01:12]} 31. Ra5 {[%clk 0:00:19]}  Rb8 {[%clk 0:01:09]} 32. Ne3 {[%clk 0:00:15]}  Rc5 {[%clk 0:01:08]} 33. a7 {[%clk 0:00:15]}  Rbc8 {[%clk 0:00:58]} 34. Raxb5 {[%clk 0:00:14]}  Rxc3 {[%clk 0:00:56]} 35. Rb8 {[%clk 0:00:14]}  Be4 {[%clk 0:00:55]} 36. Rxc8 {[%clk 0:00:11]}  Rxc8 {[%clk 0:00:55]} 37. Rb8 {[%clk 0:00:10]}  Rc1+ {[%clk 0:00:55]} 38. Kh2 {[%clk 0:00:10]}  Ra1 {[%clk 0:00:56]} 39. a8=Q {[%clk 0:00:05]}  Bxa8 {[%clk 0:00:55]} 40. Rb6 {[%clk 0:00:05]}  Be4 {[%clk 0:00:55]} 41. Kg3 {[%clk 0:00:05]}  Ra2 {[%clk 0:00:54]} 42. Rb4 {[%clk 0:00:06]}  Bd3 {[%clk 0:00:53]} 43. Rd4 {[%clk 0:00:06]}  Bb5 {[%clk 0:00:50]} 44. Rb4 {[%clk 0:00:05]}  Bc6 {[%clk 0:00:50]} 45. Rc4 {[%clk 0:00:05]}  Bd7 {[%clk 0:00:49]} 46. Rc2 {[%clk 0:00:05]}  Ra3 {[%clk 0:00:48]} 47. Rd2 {[%clk 0:00:05]}  Be6 {[%clk 0:00:48]} 48. Rd4 {[%clk 0:00:06]}  Ra1 {[%clk 0:00:48]} 49. Kf4 {[%clk 0:00:06]}  Kf6 {[%clk 0:00:47]} 50. Kg3 {[%clk 0:00:06]}  Ra2 {[%clk 0:00:46]} 51. Ng4+ {[%clk 0:00:06]}  Ke7 {[%clk 0:00:45]} 52. Re4 {[%clk 0:00:07]}  f5 {[%clk 0:00:45]} 53. Rxe6+ {[%clk 0:00:04]}  Kxe6 {[%clk 0:00:45]} 54. Nh2 {[%clk 0:00:03]}  g5 {[%clk 0:00:43]} 55. Nf3 {[%clk 0:00:03]}  Kf6 {[%clk 0:00:42]} 56. h4 {[%clk 0:00:04]}  g4 {[%clk 0:00:40]} 57. Ng5 {[%clk 0:00:02]}  Ra3+ {[%clk 0:00:39]} 58. f3 {[%clk 0:00:02]}  Ra4 {[%clk 0:00:36]} 59. f4 {[%clk 0:00:02]}  Ra3+ {[%clk 0:00:34]} 60. Kh2 {[%clk 0:00:03]}  Ra2 {[%clk 0:00:33]} 61. h5 {[%clk 0:00:02]}  Rf2 {[%clk 0:00:30]} 62. Kg3 {[%clk 0:00:02]}  Rf1 {[%clk 0:00:31]} 63. h6 {[%clk 0:00:01]}  Rh1 {[%clk 0:00:27]} 64. h7 {[%clk 0:00:02]}  Kg7 {[%clk 0:00:27]} 65. Kf2 {[%clk 0:00:02]}  Rh5 {[%clk 0:00:26]} 66. g3 {[%clk 0:00:03]}  Rh6 {[%clk 0:00:23]} 67. Ke3 {[%clk 0:00:03]}  Ra6 {[%clk 0:00:23]} 68. Kd4 {[%clk 0:00:03]}  Ra3 {[%clk 0:00:23]} 69. Ke5 {[%clk 0:00:04]}  Rxg3 {[%clk 0:00:22]} 70. Kxf5 {[%clk 0:00:05]}  Rg1 {[%clk 0:00:22]} 71. Ke6 {[%clk 0:00:05]}  g3 {[%clk 0:00:21]} 72. f5 {[%clk 0:00:06]}  Re1+ {[%clk 0:00:20]} 73. Kd5 {[%clk 0:00:06]}  Rf1 {[%clk 0:00:20]} 74. f6+ {[%clk 0:00:07]}  Rxf6 {[%clk 0:00:20]} 75. Ke4 {[%clk 0:00:08]}  g2 {[%clk 0:00:19]} 76. Nh3 {[%clk 0:00:07]}  Rf1 {[%clk 0:00:17]} 0-1


[Site "https://www.chess.com"]

[Event "Titled Tuesday Blitz February 14 Late 2023"]
[White "ritanovikova"]
[Black "Cruz Gomez, Miguel Angel"]
[BlackFideId "5137160"]
[WhiteElo "2189"]
[BlackElo "1950"]
[Result "1-0"]
[Round "10"]
[TimeControl "180+2"]
[Date "2023.02.14"]
[WhiteClock "0:01:26"]
[BlackClock "0:00:54"]

1. e4 {[%clk 0:03:00]}  c5 {[%clk 0:02:59]} 2. Nc3 {[%clk 0:02:59]}  e6 {[%clk 0:02:58]} 3. d3 {[%clk 0:03:00]}  Nc6 {[%clk 0:02:58]} 4. g3 {[%clk 0:03:01]}  g6 {[%clk 0:02:58]} 5. Bg2 {[%clk 0:03:02]}  Bg7 {[%clk 0:02:58]} 6. Be3 {[%clk 0:03:03]}  d6 {[%clk 0:02:57]} 7. Qd2 {[%clk 0:03:03]}  h5 {[%clk 0:02:46]} 8. Nge2 {[%clk 0:03:01]}  Nd4 {[%clk 0:02:44]} 9. Nd1 {[%clk 0:03:00]}  Ne7 {[%clk 0:02:44]} 10. c3 {[%clk 0:03:00]}  Ndc6 {[%clk 0:02:43]} 11. d4 {[%clk 0:02:59]}  cxd4 {[%clk 0:02:33]} 12. cxd4 {[%clk 0:03:00]}  d5 {[%clk 0:02:33]} 13. f3 {[%clk 0:02:59]}  h4 {[%clk 0:02:32]} 14. Ndc3 {[%clk 0:02:57]}  dxe4 {[%clk 0:02:19]} 15. fxe4 {[%clk 0:02:56]}  hxg3 {[%clk 0:02:10]} 16. hxg3 {[%clk 0:02:55]}  Rxh1+ {[%clk 0:02:11]} 17. Bxh1 {[%clk 0:02:55]}  Bd7 {[%clk 0:02:03]} 18. d5 {[%clk 0:02:54]}  Ne5 {[%clk 0:02:00]} 19. b3 {[%clk 0:02:50]}  exd5 {[%clk 0:01:51]} 20. exd5 {[%clk 0:02:46]}  Nf5 {[%clk 0:01:51]} 21. Bg5 {[%clk 0:02:36]}  Qa5 {[%clk 0:01:48]} 22. Ne4 {[%clk 0:02:11]}  Qxd2+ {[%clk 0:01:42]} 23. Kxd2 {[%clk 0:02:11]}  Nf3+ {[%clk 0:01:42]} 24. Bxf3 {[%clk 0:02:11]}  Bxa1 {[%clk 0:01:42]} 25. g4 {[%clk 0:02:08]}  Ne7 {[%clk 0:01:38]} 26. Nd6+ {[%clk 0:01:57]}  Kf8 {[%clk 0:01:37]} 27. Nxb7 {[%clk 0:01:53]}  f6 {[%clk 0:01:37]} 28. Bh6+ {[%clk 0:01:50]}  Kf7 {[%clk 0:01:35]} 29. d6 {[%clk 0:01:48]}  Ng8 {[%clk 0:01:17]} 30. Be3 {[%clk 0:01:41]}  Re8 {[%clk 0:01:09]} 31. Nc5 {[%clk 0:01:36]}  Rd8 {[%clk 0:01:05]} 32. Bd5+ {[%clk 0:01:31]}  Kg7 {[%clk 0:01:05]} 33. Nb7 {[%clk 0:01:29]}  Rb8 {[%clk 0:00:55]} 34. Bxa7 {[%clk 0:01:28]}  Bxg4 {[%clk 0:00:54]} 35. Bxb8 {[%clk 0:01:26]} 1-0


[Site "https://www.chess.com"]

[Event "Titled Tuesday Blitz February 14 Late 2023"]
[White "Mushini Ajay"]
[Black "Romero Ruscalleda, Josep"]
[WhiteFideId "35066188"]
[BlackFideId "2231859"]
[WhiteElo "2310"]
[BlackElo "2160"]
[Result "0-1"]
[Round "10"]
[TimeControl "180+2"]
[Date "2023.02.14"]
[WhiteClock "0:01:05"]
[BlackClock "0:01:13"]

1. e4 {[%clk 0:02:44]}  g6 {[%clk 0:03:00]} 2. Nc3 {[%clk 0:02:42]}  Bg7 {[%clk 0:03:01]} 3. d4 {[%clk 0:02:43]}  d6 {[%clk 0:03:01]} 4. f4 {[%clk 0:02:39]}  a6 {[%clk 0:03:00]} 5. a4 {[%clk 0:02:34]}  Nc6 {[%clk 0:02:57]} 6. Be3 {[%clk 0:02:34]}  Nf6 {[%clk 0:02:56]} 7. Be2 {[%clk 0:02:33]}  O-O {[%clk 0:02:55]} 8. h4 {[%clk 0:02:32]}  h5 {[%clk 0:02:53]} 9. f5 {[%clk 0:02:29]}  e5 {[%clk 0:02:42]} 10. d5 {[%clk 0:02:24]}  Nd4 {[%clk 0:02:31]} 11. Nf3 {[%clk 0:02:14]}  Nxe2 {[%clk 0:02:24]} 12. Qxe2 {[%clk 0:02:13]}  gxf5 {[%clk 0:02:23]} 13. exf5 {[%clk 0:02:11]}  Bxf5 {[%clk 0:02:20]} 14. Bg5 {[%clk 0:02:11]}  Qd7 {[%clk 0:02:19]} 15. Bxf6 {[%clk 0:01:51]}  Bxf6 {[%clk 0:02:19]} 16. Ne4 {[%clk 0:01:52]}  Bxe4 {[%clk 0:02:09]} 17. Qxe4 {[%clk 0:01:53]}  Qg4 {[%clk 0:02:09]} 18. Qxg4+ {[%clk 0:01:48]}  hxg4 {[%clk 0:02:09]} 19. Nd2 {[%clk 0:01:49]}  Kg7 {[%clk 0:02:05]} 20. Ne4 {[%clk 0:01:48]}  Rh8 {[%clk 0:02:05]} 21. Nxf6 {[%clk 0:01:33]}  Kxf6 {[%clk 0:02:05]} 22. g3 {[%clk 0:01:32]}  Rh5 {[%clk 0:01:59]} 23. O-O-O {[%clk 0:01:26]}  Kg6 {[%clk 0:01:54]} 24. Rd3 {[%clk 0:01:25]}  f5 {[%clk 0:01:54]} 25. Rb3 {[%clk 0:01:25]}  Rb8 {[%clk 0:01:49]} 26. a5 {[%clk 0:01:15]}  f4 {[%clk 0:01:45]} 27. gxf4 {[%clk 0:01:14]}  exf4 {[%clk 0:01:44]} 28. Re1 {[%clk 0:01:15]}  Re5 {[%clk 0:01:42]} 29. Rd1 {[%clk 0:01:13]}  g3 {[%clk 0:01:38]} 30. Rc3 {[%clk 0:01:12]}  Re7 {[%clk 0:01:34]} 31. Rd4 {[%clk 0:01:11]}  g2 {[%clk 0:01:23]} 32. Rxf4 {[%clk 0:01:10]}  g1=Q+ {[%clk 0:01:21]} 33. Kd2 {[%clk 0:01:07]}  Qh2+ {[%clk 0:01:19]} 34. Kd1 {[%clk 0:01:06]}  Qxf4 {[%clk 0:01:18]} 35. Rf3 {[%clk 0:01:05]}  Qxf3+ {[%clk 0:01:18]} 36. Kc1 {[%clk 0:01:05]}  Qf1+ {[%clk 0:01:16]} 37. Kd2 {[%clk 0:01:05]}  Re2+ {[%clk 0:01:15]} 38. Kd3 {[%clk 0:01:05]}  Qf3+ {[%clk 0:01:14]} 39. Kd4 {[%clk 0:01:05]}  Re4# {[%clk 0:01:13]} 0-1


[Site "https://www.chess.com"]